bitfinex/quotes_BTCUSD_20220405
["timestamp","ask_amount","ask_price","bid_price","bid_amount"]
[1649201940641,0.00209065,45859.0,45852.0,0.21763564]
[1649201941095,0.23376391,45860.0,45852.0,0.21763564]
[1649201941096,0.1576245,45860.0,45852.0,0.21763564]
[1649201941193,0.2076245,45860.0,45852.0,0.21763564]
[1649201941842,7.726e-05,45853.0,45852.0,0.21763564]
[1649201941977,1.726e-05,45853.0,45852.0,0.21763564]
[1649201942078,1.726e-05,45853.0,45845.0,0.001]
[1649201942227,1.726e-05,45853.0,45846.0,0.321718]
[1649201942327,1.726e-05,45853.0,45846.0,0.421718]
[1649201942428,1.726e-05,45853.0,45846.0,0.1]
[1649201942881,1.726e-05,45853.0,45846.0,0.15]
[1649201943331,1.726e-05,45853.0,45847.0,0.00052838]
[1649201943681,1.726e-05,45853.0,45848.0,0.321718]
[1649201943780,1.726e-05,45853.0,45847.0,0.00052838]
[1649201943882,7.233e-05,45859.0,45847.0,0.00052838]
[1649201944036,7.233e-05,45859.0,45850.0,0.21938722]
[1649201944541,7.233e-05,45859.0,45852.0,0.00052834]
[1649201945536,7.233e-05,45859.0,45850.0,0.21938722]
[1649201945700,7.233e-05,45859.0,45853.0,0.00052834]
[1649201946654,7.233e-05,45859.0,45850.0,0.21938722]
[1649201946848,7.233e-05,45859.0,45853.0,0.00052835]
[1649201947899,7.233e-05,45859.0,45850.0,0.21938722]
[1649201948099,7.233e-05,45859.0,45853.0,0.00050895]
[1649201949099,7.233e-05,45859.0,45850.0,0.21938722]
[1649201949300,7.233e-05,45859.0,45853.0,0.00050895]
[1649201950241,7.233e-05,45859.0,45850.0,0.21938722]
[1649201950443,7.233e-05,45859.0,45853.0,0.00050895]
[1649201951496,7.233e-05,45859.0,45850.0,0.21938722]
[1649201951696,7.233e-05,45859.0,45853.0,0.00049]
[1649201952749,7.233e-05,45859.0,45850.0,0.21938722]
[1649201952851,7.233e-05,45859.0,45853.0,0.00049]
[1649201953866,7.233e-05,45859.0,45850.0,0.21938722]
[1649201954067,7.233e-05,45859.0,45853.0,0.00049]
[1649201955070,7.233e-05,45859.0,45850.0,0.21938722]
[1649201955319,7.233e-05,45859.0,45853.0,0.00049128]
[1649201956322,7.233e-05,45859.0,45850.0,0.21938722]
[1649201956575,7.233e-05,45859.0,45853.0,0.00049128]
[1649201957494,7.233e-05,45859.0,45850.0,0.21938722]
[1649201957695,7.233e-05,45859.0,45853.0,0.00049128]
[1649201958100,0.31018171,45859.0,45853.0,0.00049128]
[1649201958697,0.31018171,45859.0,45845.0,0.001]
[1649201958898,0.31018171,45859.0,45853.0,0.0004912]
[1649201959201,0.41924847,45859.0,45853.0,0.0004912]
[1649201959600,0.054524,45858.0,45853.0,0.0004912]
[1649201959802,0.109051,45858.0,45853.0,0.0004912]
[1649201959904,0.109051,45858.0,45845.0,0.001]
[1649201960002,0.23984576,45846.0,45845.0,0.001]
[1649201960104,0.23984576,45846.0,45845.0,0.32378634]
[1649201960302,0.23984576,45846.0,45845.0,0.47378634]
[1649201960404,0.23984576,45846.0,45845.0,0.52378634]
[1649201962053,0.0728135,45846.0,45845.0,0.52378634]
[1649201963306,0.0728135,45846.0,45845.0,0.20206834]
[1649201963407,0.0728135,45846.0,45845.0,0.42378634]
[1649201963605,0.0728135,45846.0,45845.0,0.52378634]
[1649201963806,0.07288352,45846.0,45845.0,0.52378634]
[1649201964256,0.07288352,45846.0,45845.0,0.47378634]
[1649201966000,7.002e-05,45846.0,45845.0,0.65167385]
[1649201966151,7.002e-05,45846.0,45845.0,0.32995585]
[1649201966349,7.002e-05,45846.0,45845.0,0.15206834]
[1649201966649,7.002e-05,45846.0,45845.0,0.32995585]
[1649201966751,7.002e-05,45846.0,45845.0,0.15206834]
[1649201966852,7.002e-05,45846.0,45845.0,0.32995585]
[1649201966954,7.002e-05,45846.0,45845.0,0.15206834]
[1649201967060,7.002e-05,45846.0,45845.0,0.32995585]
[1649201967159,7.002e-05,45846.0,45845.0,0.70167385]
[1649201967453,7.002e-05,45846.0,45845.0,0.37995585]
[1649201967552,7.002e-05,45846.0,45845.0,0.27995585]
[1649201967653,7.002e-05,45846.0,45845.0,0.37995585]
[1649201968055,7.002e-05,45846.0,45845.0,0.20206834]
[1649201968686,7.002e-05,45846.0,45845.0,0.05206834]
[1649201968888,7.002e-05,45846.0,45845.0,0.00206834]
[1649201969286,7.002e-05,45846.0,45845.0,0.32378634]
[1649201971142,7.002e-05,45846.0,45845.0,0.54666287]
[1649201971245,0.084621,45847.0,45845.0,0.22494487]
[1649201971342,0.084621,45847.0,45845.0,0.22387653]
[1649201971595,0.31022886,45852.0,45845.0,0.22387653]
[1649201971694,0.31035628,45855.0,45848.0,0.17830124]
[1649201971795,0.17828354,45857.0,45848.0,0.17830124]
[1649201972108,0.17828354,45857.0,45849.0,0.00051507]
[1649201972210,0.31035628,45858.0,45850.0,0.17830124]
[1649201972509,0.31035628,45858.0,45851.0,0.17830124]
[1649201972709,0.28249125,45857.0,45851.0,0.17830124]
[1649201972914,0.28249125,45857.0,45850.0,0.17830124]
[1649201973011,0.28249125,45857.0,45851.0,0.17830124]
[1649201973361,0.28249125,45857.0,45852.0,0.00051506]
[1649201974267,0.28249125,45857.0,45851.0,0.17830124]
[1649201974564,0.28249125,45857.0,45852.0,0.0004917]
[1649201975068,0.17828354,45860.0,45852.0,0.0004917]
[1649201975315,0.1713,45862.0,45852.0,0.0004917]
[1649201975316,0.17828354,45861.0,45852.0,0.0004917]
[1649201975467,0.17828354,45861.0,45852.0,0.17830124]
[1649201975714,0.17828354,45861.0,45853.0,0.00047231]
[1649201975816,0.40101831,45864.0,45853.0,0.17877355]
[1649201975918,0.17828354,45864.0,45855.0,0.17830124]
[1649201976017,0.22273477,45865.0,45855.0,0.17830124]
[1649201976018,0.17828354,45865.0,45857.0,0.17830124]
[1649201976116,0.1787557,45867.0,45858.0,0.50001924]
[1649201976217,0.00047216,45867.0,45859.0,0.23501884]
[1649201976414,0.00047216,45867.0,45859.0,0.28501884]
[1649201976516,0.00047216,45867.0,45860.0,0.321718]
[1649201976764,0.0999,45871.0,45860.0,0.37251749]
[1649201976765,0.27818354,45871.0,45860.0,0.37251749]
[1649201976866,0.0999,45871.0,45861.0,0.22287653]
[1649201976966,0.00047219,45867.0,45865.0,0.321718]
[1649201977318,0.00047219,45867.0,45865.0,0.49981665]
[1649201977419,0.00047219,45867.0,45865.0,0.321718]
[1649201977516,0.00047219,45867.0,45866.0,0.25842926]
[1649201977618,0.00047219,45867.0,45866.0,0.58014726]
[1649201977916,0.0011,45874.0,45866.0,0.58014726]
[1649201978016,0.0011,45874.0,45866.0,0.25842926]
[1649201978117,0.0011,45874.0,45866.0,0.25919267]
[1649201978318,0.0011,45874.0,45866.0,0.25842926]
[1649201978417,0.0004744,45869.0,45867.0,0.321718]
[1649201978721,0.0004744,45869.0,45866.0,0.25842926]
[1649201978818,0.0004744,45869.0,45867.0,0.32248689]
[1649201978919,0.0004744,45869.0,45867.0,0.00076889]
[1649201979019,0.0004744,45869.0,45866.0,0.25842926]
[1649201979118,0.0011,45874.0,45867.0,0.00078784]
[1649201979267,0.0011,45874.0,45866.0,0.25842926]
[1649201979444,0.00045669,45870.0,45866.0,0.25842926]
[1649201979902,0.00045669,45870.0,45862.0,0.17809865]
[1649201980203,0.00045669,45870.0,45861.0,0.17809865]
[1649201980308,0.00045669,45870.0,45860.0,0.05]
[1649201980405,6.694e-05,45868.0,45859.0,0.38899865]
[1649201980705,0.00052364,45868.0,45859.0,0.38899865]
[1649201980807,0.00052364,45868.0,45859.0,0.2]
[1649201981005,0.2462678,45867.0,45859.0,0.1]
[1649201981104,0.2462678,45867.0,45859.0,0.05]
[1649201981207,0.2462678,45867.0,45859.0,0.1]
[1649201981310,0.2462678,45867.0,45858.0,1.11189865]
[1649201981763,0.3007838,45867.0,45858.0,0.2109]
[1649201981866,0.35575806,45867.0,45858.0,0.2109]
[1649201981966,0.35575806,45867.0,45858.0,0.1109]
[1649201982066,0.35575806,45867.0,45858.0,0.0609]
[1649201982164,0.35575806,45867.0,45858.0,0.0109]
[1649201982462,0.35575806,45867.0,45858.0,0.18899865]
[1649201982566,0.35575806,45867.0,45858.0,0.0109]
[1649201982765,0.3552998,45867.0,45858.0,0.0109]
[1649201983061,0.35575806,45867.0,45858.0,0.0109]
[1649201983301,0.054516,45865.0,45858.0,0.0109]
[1649201983804,0.10903463,45865.0,45858.0,0.0109]
[1649201983905,0.054519,45863.0,45858.0,0.0109]
[1649201984005,0.109038,45863.0,45858.0,0.0109]
[1649201984103,0.109038,45863.0,45859.0,0.321718]
[1649201984204,0.109038,45863.0,45858.0,0.0109]
[1649201984354,0.31035628,45862.0,45858.0,0.0109]
[1649201984455,0.109057,45861.0,45854.0,0.18899865]
[1649201984554,0.109057,45861.0,45853.0,0.17855826]
[1649201984654,0.054527,45860.0,45853.0,0.00045961]
[1649201984758,0.31035628,45859.0,45853.0,0.00045961]
[1649201984906,1.95832434,45858.0,45853.0,0.00045961]
[1649201985004,0.31035628,45857.0,45853.0,0.00045961]
[1649201985215,0.27860944,45855.0,45851.0,0.0109]
[1649201985313,0.27860944,45855.0,45854.0,0.00106824]
[1649201987156,0.58896572,45855.0,45854.0,0.00106824]
[1649201987857,0.27860944,45855.0,45854.0,0.00106824]
[1649201987958,0.31035628,45859.0,45854.0,0.00106824]
[1649201988057,0.31035628,45859.0,45852.0,0.00046074]
[1649201988156,0.31035628,45862.0,45852.0,0.00046074]
[1649201988558,6.462e-05,45855.0,45852.0,0.00046074]
[1649201988659,6.462e-05,45855.0,45854.0,0.00106828]
[1649201991196,6.462e-05,45855.0,45854.0,0.32278628]
[1649201991500,6.462e-05,45855.0,45854.0,0.00106828]
[1649201991895,6.462e-05,45855.0,45854.0,0.32278628]
[1649201991997,4.62e-06,45855.0,45854.0,0.17920805]
[1649201992299,0.31035628,45866.0,45854.0,0.17920805]
[1649201992401,0.31035628,45866.0,45854.0,0.17813977]
[1649201993049,0.31035628,45866.0,45862.0,0.25766042]
[1649201993150,0.00046025,45867.0,45862.0,0.25766042]
[1649201993603,0.17818405,45869.0,45862.0,0.25766042]
[1649201993710,0.17818405,45870.0,45862.0,0.25766042]
[1649201993802,0.73359464,45872.0,45862.0,0.25766042]
[1649201993902,0.00046031,45867.0,45862.0,0.25766042]
[1649201994456,6.04e-05,45865.0,45862.0,0.25766042]
[1649201996365,0.00018817,45867.0,45862.0,0.25766042]
[1649201997220,6.058e-05,45872.0,45862.0,0.25766042]
[1649201997519,0.00049701,45867.0,45862.0,0.25766042]
[1649201997621,0.00049701,45867.0,45863.0,0.00077055]
[1649201997771,0.00049701,45867.0,45863.0,0.321718]
[1649201997868,0.00049701,45867.0,45863.0,0.00076355]
[1649201997968,0.00049701,45867.0,45863.0,0.321718]
[1649201998209,0.00049701,45867.0,45864.0,0.321718]
[1649201998309,0.00049701,45867.0,45864.0,0.32256283]
[1649201998412,6.058e-05,45872.0,45864.0,0.32256283]
[1649201998511,6.058e-05,45872.0,45871.0,0.27711632]
[1649202000217,0.00166656,45874.0,45871.0,0.27711632]
[1649202000321,0.00166656,45874.0,45871.0,0.27787081]
[1649202000417,0.00166656,45874.0,45871.0,0.27711632]
[1649202000517,0.00166656,45874.0,45871.0,0.27789143]
[1649202000716,0.00166656,45874.0,45860.0,0.0436]
[1649202000816,0.00116058,45874.0,45862.0,0.00075098]
[1649202000917,0.00116058,45874.0,45860.0,0.0436]
[1649202001018,0.00116058,45874.0,45862.0,0.321718]
[1649202001132,0.00116058,45874.0,45861.0,0.321718]
[1649202001669,0.00116058,45874.0,45868.0,0.252531]
[1649202002002,0.00116058,45874.0,45861.0,0.15]
[1649202002003,0.22310871,45865.0,45861.0,0.15]
[1649202002101,0.22310871,45865.0,45862.0,0.332618]
[1649202002301,0.22310871,45865.0,45862.0,0.482618]
[1649202002402,0.22310871,45865.0,45864.0,0.23472436]
[1649202002498,0.22310871,45865.0,45864.0,0.55644236]
[1649202002603,0.22310871,45865.0,45864.0,0.70644236]
[1649202004153,0.22310871,45865.0,45864.0,0.471718]
[1649202004356,0.22310871,45865.0,45864.0,0.15]
[1649202004554,0.22310871,45865.0,45864.0,0.05]
[1649202004653,0.22310871,45865.0,45860.0,0.0109]
[1649202004755,0.22310871,45865.0,45857.0,0.1]
[1649202004756,0.22310871,45865.0,45858.0,0.0109]
[1649202005002,2.52585549,45865.0,45857.0,0.0109]
[1649202005103,2.52585549,45865.0,45855.0,0.0109]
[1649202005203,0.25805734,45860.0,45854.0,0.0109]
[1649202005354,0.25805734,45860.0,45859.0,0.32291674]
[1649202005453,0.25805734,45860.0,45859.0,0.37291674]
[1649202007757,0.25805734,45860.0,45859.0,0.05119874]
[1649202007859,0.26028047,45860.0,45859.0,0.37291674]
[1649202007957,0.26028047,45860.0,45859.0,0.05119874]
[1649202008261,0.26028047,45860.0,45859.0,0.00119874]
[1649202010610,0.26176256,45860.0,45859.0,0.00119874]
[1649202011613,0.26176256,45860.0,45859.0,0.32291674]
[1649202011714,0.26176256,45860.0,45859.0,0.00119874]
[1649202011815,0.26176256,45860.0,45859.0,0.05119874]
[1649202011916,0.00370522,45860.0,45859.0,0.00119874]
[1649202020368,0.0031879,45860.0,45859.0,0.00119874]
[1649202022808,0.22310871,45865.0,45859.0,0.00119874]
[1649202022906,0.22310871,45865.0,45853.0,0.23321521]
[1649202023006,0.22310871,45865.0,45854.0,0.321718]
[1649202023107,0.22310871,45865.0,45854.0,0.24836923]
[1649202023207,0.22310871,45865.0,45855.0,0.321718]
[1649202023305,0.22310871,45865.0,45860.0,0.10894765]
[1649202023411,0.22310871,45865.0,45864.0,0.10894765]
[1649202023607,0.22310871,45865.0,45864.0,0.34929851]
[1649202023809,0.22310871,45865.0,45864.0,0.24035086]
[1649202025051,0.22310871,45865.0,45864.0,0.25137939]
[1649202025249,0.22310871,45865.0,45864.0,0.24035086]
[1649202026455,0.22316911,45865.0,45864.0,0.24035086]
[1649202026908,0.22601095,45865.0,45864.0,0.24035086]
[1649202029403,0.22601095,45865.0,45857.0,0.0272497]
[1649202029503,0.22601095,45865.0,45858.0,0.321718]
[1649202031005,0.22601095,45865.0,45860.0,0.26877873]
[1649202031806,0.22601095,45865.0,45857.0,0.321718]
[1649202031968,0.22601095,45865.0,45855.0,0.0109]
[1649202033063,0.22601095,45865.0,45854.0,0.30373227]
[1649202033164,0.210219,45860.0,45854.0,0.30373227]
[1649202033265,0.210219,45860.0,45859.0,0.00119882]
[1649202033965,0.00194288,45858.0,45854.0,0.0109]
[1649202034064,0.00194288,45858.0,45855.0,0.321718]
[1649202034166,0.00194288,45858.0,45854.0,0.0109]
[1649202034266,0.00194288,45858.0,45855.0,0.321718]
[1649202036348,0.00194288,45858.0,45857.0,0.00030515]
[1649202037048,0.00194288,45858.0,45856.0,0.22238452]
[1649202037149,0.00194288,45858.0,45855.0,0.22238452]
[1649202037351,0.00194288,45858.0,45854.0,0.22238452]
[1649202037450,0.00194288,45858.0,45853.0,0.22284511]
[1649202037851,0.00194288,45858.0,45853.0,0.00046059]
[1649202038050,0.00194288,45858.0,45852.0,0.22238452]
[1649202038151,0.00194288,45858.0,45853.0,0.22238452]
[1649202038254,0.00194288,45858.0,45853.0,0.2228451]
[1649202038406,0.26907494,45857.0,45853.0,0.2228451]
[1649202038903,0.26907494,45857.0,45853.0,0.00046058]
[1649202039003,0.26907494,45857.0,45853.0,0.2228451]
[1649202039254,0.26907494,45857.0,45852.0,0.22238452]
[1649202039454,0.26907494,45857.0,45853.0,0.00046052]
[1649202040512,0.26907494,45857.0,45852.0,0.22238452]
[1649202040658,0.26907494,45857.0,45853.0,0.00046044]
[1649202041712,0.26907494,45857.0,45852.0,0.22238452]
[1649202041915,0.26907494,45857.0,45853.0,0.00046044]
[1649202042814,0.26907494,45857.0,45851.0,0.21784496]
[1649202043064,0.26907494,45857.0,45853.0,0.00046045]
[1649202044084,0.26907494,45857.0,45850.0,0.27768825]
[1649202044534,0.26907494,45857.0,45851.0,0.26677825]
[1649202044637,0.26907494,45857.0,45850.0,0.27768825]
[1649202046637,6.795e-05,45856.0,45851.0,0.00052973]
[1649202047648,6.795e-05,45856.0,45852.0,0.321718]
[1649202047748,6.795e-05,45856.0,45851.0,0.321718]
[1649202051160,6.795e-05,45856.0,45849.0,0.27768825]
[1649202051264,6.795e-05,45856.0,45850.0,0.321718]
[1649202051471,6.795e-05,45856.0,45851.0,0.00053021]
[1649202052263,0.31139533,45856.0,45851.0,0.00053021]
[1649202052462,0.31139533,45856.0,45847.0,0.321718]
[1649202052662,0.31139533,45856.0,45851.0,0.00053021]
[1649202052816,6.795e-05,45856.0,45851.0,0.00053021]
[1649202053666,6.795e-05,45856.0,45846.0,0.31677825]
[1649202053864,0.24432102,45850.0,45846.0,0.31677825]
[1649202053969,0.21988892,45850.0,45847.0,0.321718]
[1649202056426,6.67e-05,45849.0,45847.0,0.321718]
[1649202058412,6.67e-05,45849.0,45846.0,0.00051085]
[1649202058517,6.67e-05,45849.0,45845.0,0.001]
[1649202058518,0.31008504,45849.0,45845.0,0.001]
[1649202058616,0.30956772,45849.0,45845.0,0.001]
[1649202058714,0.21988892,45850.0,45846.0,0.00051085]
[1649202059718,0.21988892,45850.0,45845.0,0.001]
[1649202059916,0.21988892,45850.0,45846.0,0.00049222]
[1649202060819,0.21988892,45850.0,45845.0,0.001]
[1649202061017,0.21988892,45850.0,45846.0,0.00049222]
[1649202062101,0.21988892,45850.0,45845.0,0.001]
[1649202062302,0.21988892,45850.0,45846.0,0.32221022]
[1649202062404,0.21988892,45850.0,45846.0,0.00049222]
[1649202062502,6.884e-05,45849.0,45846.0,0.00049222]
[1649202063256,6.884e-05,45849.0,45845.0,0.001]
[1649202063455,6.884e-05,45849.0,45845.0,0.00149262]
[1649202064460,6.884e-05,45849.0,45845.0,0.001]
[1649202064660,6.884e-05,45849.0,45845.0,0.00149262]
[1649202064961,6.884e-05,45849.0,45846.0,0.321718]
[1649202065838,6.884e-05,45849.0,45847.0,0.29145342]
[1649202065938,6.884e-05,45849.0,45848.0,0.29145351]
[1649202066039,6.884e-05,45849.0,45848.0,0.61317151]
[1649202066141,6.884e-05,45849.0,45848.0,0.62420064]
[1649202066742,0.00250402,45858.0,45849.0,0.321718]
[1649202066840,0.00250402,45858.0,45848.0,0.30248264]
[1649202066841,0.00201154,45858.0,45854.0,0.01102913]
[1649202066939,0.01965361,45853.0,45852.0,0.55436921]
[1649202069093,0.01965361,45853.0,45852.0,0.23265121]
[1649202069195,0.01965361,45853.0,45852.0,0.55436921]
[1649202069298,0.01965361,45853.0,45852.0,0.4184377]
[1649202069578,0.06965361,45853.0,45852.0,0.000218]
[1649202072331,0.06972316,45853.0,45852.0,0.000218]
[1649202076217,0.06972316,45853.0,45851.0,0.321718]
[1649202076468,0.06972316,45853.0,45847.0,0.26677825]
[1649202076667,0.06972316,45853.0,45850.0,0.00045725]
[1649202077386,0.21369413,45852.0,45850.0,0.00045725]
[1649202077488,0.21369413,45852.0,45851.0,0.01103118]
[1649202078136,0.21369413,45852.0,45849.0,0.00045725]
[1649202078236,0.21369413,45852.0,45851.0,0.01103057]
[1649202078637,0.21376351,45852.0,45851.0,0.01103057]
[1649202079640,0.21376351,45852.0,45849.0,0.00045725]
[1649202080190,0.21376351,45852.0,45845.0,0.001]
[1649202080291,0.21376351,45852.0,45848.0,0.00045726]
[1649202080542,0.05,45851.0,45848.0,0.00045726]
[1649202081103,0.05,45851.0,45849.0,0.321718]
[1649202081305,0.05,45851.0,45846.0,0.321718]
[1649202081507,0.05,45851.0,45848.0,0.00046083]
[1649202082458,0.05,45851.0,45845.0,0.001]
[1649202082459,0.0500692,45851.0,45845.0,0.001]
[1649202082659,0.0500692,45851.0,45847.0,0.00046083]
[1649202083160,0.0500692,45851.0,45848.0,0.321718]
[1649202083359,0.0450692,45851.0,45847.0,0.00046083]
[1649202083709,0.0450692,45851.0,45846.0,0.321718]
[1649202083811,0.0450692,45851.0,45845.0,0.001]
[1649202083912,0.0450692,45851.0,45847.0,0.32217883]
[1649202084011,0.0450692,45851.0,45847.0,0.00046083]
[1649202084907,0.0450692,45851.0,45845.0,0.001]
[1649202085007,0.0450692,45851.0,45846.0,0.321718]
[1649202085107,0.0450692,45851.0,45847.0,0.00046047]
[1649202085207,0.0450692,45851.0,45847.0,0.32217847]
[1649202085507,0.0450692,45851.0,45847.0,0.00046047]
[1649202085807,0.0450692,45851.0,45848.0,0.321718]
[1649202085908,0.0450692,45851.0,45847.0,0.00046047]
[1649202086111,0.0450692,45851.0,45848.0,0.321718]
[1649202086209,0.0450692,45851.0,45846.0,0.321718]
[1649202086307,0.0450692,45851.0,45847.0,0.00046047]
[1649202087169,0.0450692,45851.0,45848.0,0.321718]
[1649202087266,0.0450692,45851.0,45845.0,0.001]
[1649202087364,0.0450692,45851.0,45846.0,0.321718]
[1649202087469,0.0450692,45851.0,45847.0,0.00046047]
[1649202088551,0.0450692,45851.0,45846.0,0.321718]
[1649202088653,0.0450692,45851.0,45847.0,0.00046051]
[1649202089453,0.0450692,45851.0,45848.0,0.321718]
[1649202089752,0.0450692,45851.0,45846.0,0.321718]
[1649202089856,0.0450692,45851.0,45847.0,0.00046051]
[1649202090259,0.0450692,45851.0,45848.0,0.321718]
[1649202090356,0.0450692,45851.0,45847.0,0.00046051]
[1649202090855,0.0450692,45851.0,45845.0,0.001]
[1649202090958,0.0450692,45851.0,45846.0,0.321718]
[1649202091056,0.0450692,45851.0,45847.0,0.00046051]
[1649202091358,0.0450692,45851.0,45848.0,0.321718]
[1649202091459,0.0450692,45851.0,45847.0,0.00046051]
[1649202091608,0.0450692,45851.0,45848.0,0.321718]
[1649202091708,0.0450692,45851.0,45847.0,0.00046051]
[1649202091808,0.0450692,45851.0,45848.0,0.321718]
[1649202091966,0.0450692,45851.0,45849.0,0.321718]
[1649202092060,0.0450692,45851.0,45845.0,0.001]
[1649202092161,0.0450692,45851.0,45846.0,0.321718]
[1649202092260,0.0450692,45851.0,45847.0,0.0004605]
[1649202093315,0.0450692,45851.0,45846.0,0.321718]
[1649202093512,0.0450692,45851.0,45847.0,0.00046051]
[1649202094517,0.0450692,45851.0,45846.0,0.321718]
[1649202094717,0.0450692,45851.0,45847.0,0.00046051]
[1649202095121,0.09959913,45851.0,45847.0,0.00046051]
[1649202095767,0.40156875,45851.0,45845.0,0.001]
[1649202095868,0.40156875,45851.0,45847.0,0.00046051]
[1649202095869,0.47550875,45851.0,45847.0,0.00046051]
[1649202095971,0.054538,45850.0,45847.0,0.00046051]
[1649202096079,0.19673769,45850.0,45847.0,0.00046051]
[1649202096169,0.37501894,45850.0,45847.0,0.00046051]
[1649202096268,0.77828125,45849.0,45845.0,0.001]
[1649202096368,0.30173436,45848.0,45845.0,0.001]
[1649202096521,0.53405129,45848.0,45845.0,0.001]
[1649202096771,0.25859147,45846.0,45845.0,0.001]
[1649202096869,0.30133301,45846.0,45845.0,0.001]
[1649202096968,0.054553,45844.0,45837.0,0.02699446]
[1649202097067,0.30121288,45843.0,45837.0,0.02699446]
[1649202097168,0.41031754,45843.0,45837.0,0.02699446]
[1649202097823,0.67412799,45843.0,45837.0,0.02699446]
[1649202097920,0.05,45839.0,45837.0,0.02699446]
[1649202098019,0.054553,45838.0,45837.0,0.02699446]
[1649202098120,0.29466619,45838.0,45837.0,0.02699446]
[1649202099966,0.24011319,45838.0,45837.0,0.02699446]
[1649202100569,0.29473798,45838.0,45830.0,0.01091]
[1649202100718,0.29473798,45838.0,45835.0,0.00052939]
[1649202101071,0.054556,45837.0,45835.0,0.00052939]
[1649202101173,0.16366585,45837.0,45835.0,0.00052939]
[1649202101274,0.46488392,45837.0,45835.0,0.00052939]
[1649202101381,0.3012938,45836.0,45835.0,0.00052939]
[1649202101571,0.3512938,45836.0,45835.0,0.00052939]
[1649202101771,0.054558,45834.0,45826.0,0.01]
[1649202101874,0.26681757,45827.0,45826.0,0.01]
[1649202102724,0.26044397,45827.0,45826.0,0.01]
[1649202103918,0.31044397,45827.0,45826.0,0.01]
[1649202104419,0.31051638,45827.0,45826.0,0.01]
[1649202107465,0.05007241,45827.0,45826.0,0.01]
[1649202107566,0.04032898,45827.0,45826.0,0.01]
[1649202107910,7.241e-05,45827.0,45826.0,0.01]
[1649202108515,0.05007241,45829.0,45826.0,0.24423632]
[1649202108869,7.241e-05,45829.0,45826.0,0.24423632]
[1649202112467,0.05007258,45832.0,45826.0,0.24423632]
[1649202112872,7.258e-05,45832.0,45826.0,0.24423632]
[1649202113969,7.258e-05,45832.0,45827.0,0.00049354]
[1649202114861,0.05,45831.0,45827.0,0.00049354]
[1649202114963,0.05,45831.0,45826.0,0.01]
[1649202115165,0.05,45831.0,45827.0,0.00049342]
[1649202116164,0.05,45831.0,45826.0,0.01]
[1649202116368,0.05,45831.0,45827.0,0.00049343]
[1649202116467,0.27740302,45830.0,45827.0,0.00049343]
[1649202117170,0.33195477,45830.0,45827.0,0.00049343]
[1649202117369,0.33195477,45830.0,45826.0,0.01]
[1649202117568,0.33195477,45830.0,45826.0,0.01049343]
[1649202117672,0.2609145,45829.0,45826.0,0.01049343]
[1649202117867,0.3109145,45829.0,45826.0,0.01049343]
[1649202117969,0.05,45829.0,45826.0,0.01049343]
[1649202118427,0.05,45829.0,45816.0,0.2189]
[1649202118428,0.159122,45829.0,45816.0,0.2189]
[1649202118524,0.6,45828.0,45816.0,0.2189]
[1649202118625,0.05457492,45826.0,45816.0,0.2189]
[1649202118726,0.05457492,45826.0,45813.0,0.01091]
[1649202118825,0.25552194,45814.0,45813.0,0.01091]
[1649202119126,0.25552194,45814.0,45812.0,0.03345315]
[1649202119225,0.25552194,45814.0,45812.0,0.02254315]
[1649202119325,0.25552194,45814.0,45811.0,0.01]
[1649202119980,0.30534183,45813.0,45811.0,0.01]
[1649202120180,0.14231343,45813.0,45811.0,0.01]
[1649202120279,0.19231343,45813.0,45811.0,0.01]
[1649202120482,0.24689743,45813.0,45811.0,0.01]
[1649202121276,0.53764645,45813.0,45811.0,0.01]
[1649202121478,0.24689743,45813.0,45811.0,0.01]
[1649202121956,0.05,45812.0,45811.0,0.01]
[1649202124558,0.05007679,45812.0,45811.0,0.01]
[1649202126962,0.01391458,45807.0,45804.0,0.002]
[1649202127062,0.28828978,45806.0,45804.0,0.002]
[1649202127564,0.18545768,45806.0,45804.0,0.002]
[1649202128867,0.18545768,45806.0,45804.0,0.001]
[1649202130466,7.554e-05,45805.0,45804.0,0.001]
[1649202135367,0.1850159,45806.0,45804.0,0.001]
[1649202135868,0.05,45805.0,45804.0,0.001]
[1649202136516,0.05012854,45805.0,45804.0,0.001]
[1649202138813,0.05006799,45805.0,45804.0,0.001]
[1649202140418,0.35813683,45805.0,45804.0,0.001]
[1649202143575,0.05006799,45805.0,45804.0,0.001]
[1649202144873,6.799e-05,45805.0,45804.0,0.001]
[1649202147280,0.18397292,45806.0,45804.0,0.001]
[1649202148622,6.77e-05,45805.0,45804.0,0.001]
[1649202149570,0.30813654,45805.0,45804.0,0.001]
[1649202149871,0.0500677,45805.0,45804.0,0.001]
[1649202151226,0.35813654,45805.0,45804.0,0.001]
[1649202151726,0.40813654,45805.0,45804.0,0.001]
[1649202156961,0.00096323,45800.0,45796.0,0.02192]
[1649202157163,0.23455803,45800.0,45796.0,0.011]
[1649202157862,0.30806884,45799.0,45796.0,0.011]
[1649202158066,0.59157267,45799.0,45796.0,0.011]
[1649202158164,0.30806884,45799.0,45796.0,0.011]
[1649202158913,0.35806884,45799.0,45796.0,0.011]
[1649202159559,0.40806884,45799.0,45796.0,0.01128533]
[1649202160559,0.40806884,45799.0,45796.0,0.011]
[1649202160810,0.40813547,45799.0,45796.0,0.01150699]
[1649202161812,0.40813547,45799.0,45796.0,0.011]
[1649202162015,0.40813547,45799.0,45796.0,0.01150699]
[1649202163014,0.40813547,45799.0,45796.0,0.011]
[1649202163217,0.40813547,45799.0,45796.0,0.01149013]
[1649202164169,0.40813547,45799.0,45796.0,0.011]
[1649202164417,0.40813547,45799.0,45796.0,0.01149013]
[1649202165420,0.40813547,45799.0,45796.0,0.011]
[1649202165421,0.10006663,45799.0,45796.0,0.011]
[1649202165620,0.10006663,45799.0,45796.0,0.01149013]
[1649202166623,0.10006663,45799.0,45796.0,0.011]
[1649202166823,0.05006663,45799.0,45796.0,0.01149127]
[1649202167788,0.05006663,45799.0,45796.0,0.011]
[1649202169191,0.05006663,45799.0,45796.0,0.01149169]
[1649202170242,0.05006663,45799.0,45796.0,0.011]
[1649202170443,0.05006663,45799.0,45796.0,0.01152871]
[1649202171413,0.05006663,45799.0,45796.0,0.011]
[1649202171614,0.05006663,45799.0,45796.0,0.01152871]
[1649202171716,0.35813547,45799.0,45796.0,0.01152871]
[1649202172615,0.35813547,45799.0,45796.0,0.011]
[1649202173670,0.40173547,45799.0,45796.0,0.011]
[1649202173967,0.40173547,45799.0,45796.0,0.01150914]
[1649202174983,0.40173547,45799.0,45796.0,0.011]
[1649202175184,0.40173547,45799.0,45796.0,0.01150914]
[1649202176187,0.40173547,45799.0,45796.0,0.011]
[1649202176387,0.40173547,45799.0,45796.0,0.01150914]
[1649202177141,0.09366663,45799.0,45796.0,0.01150914]
[1649202177342,0.05006663,45799.0,45796.0,0.01150914]